Cogmind - Beta 11 @@@ ROGUE MODE // 2022.04.16 @ 19:57:38 Player: the cat Result: Destroyed self via exploding Nuclear Reactor Performance ------------- Evolutions (2) 1000 Regions Visited (7) 1400 Robots Destroyed (29) 145 Value Destroyed (695) 695 Prototype IDs (23) 460 Alien Tech Used (0) 0 Bonus (554) 554 TOTAL SCORE: 4254 Bonus ------- Pacifist 200 High Alert Combat Kills 33 Follower Combat Kills 21 Aligned with FarCom 300 Cogmind --------- Core Integrity 0/550 Matter 236/300 Energy 77/100 System Corruption 0% Temperature Cool (12) Movement Core (50) Location -8/Materials Parts ------- > --- POWER (1) -------- (None) > --- PROPULSION (2) --- (None) > --- UTILITY (6) ------ Modified TNC Hacking Suite Hacking Suite > --- WEAPON (2) ------- Mini Grenade Launcher > --- INVENTORY (5) ---- Light Deuterium Engine Improved Terrain Scanner Light Armor Plating Peak State ------------ > --- POWER ------------ (None) > --- PROPULSION ------- (None) > --- UTILITY ---------- Terrain Scan Processor Modified TNC Hacking Suite Hacking Suite Hacking Suite Long-range Tractor Beam > --- WEAPON ----------- Light Assault Rifle Light Assault Rifle > --- INVENTORY -------- Light Deuterium Engine Light Armor Plating Hacking Suite Heavy Particle Cannon Mini Grenade Launcher [Rating: 23] Favorites ----------- Power None Propulsion None Utility Hacking Suite Device Sensor Array Processor Modified TNC Hackware Hacking Suite Weapon Assault Rifle Energy Gun Beamcaster Energy Cannon Heavy Particle Cannon Ballistic Gun Assault Rifle Launcher Mini Grenade Launcher Build | -11 -10 -10 -9 -9 -9 -8 -8 ------- Run | Scr Mat Min Mat Min Exi Min Mat Slots Evolved 4 | . . . 2 . . . 2 Power . | . . . . . . . . Propulsion . | . . . . . . . . Utility 4 | . . . 2 . . . 2 Weapon . | . . . . . . . . Parts Attached 21 | 1 . . 3 2 1 2 12 Power . | . . . . . . . . Engine . | . . . . . . . . Core . | . . . . . . . . Reactor . | . . . . . . . . Propulsion . | . . . . . . . . Treads . | . . . . . . . . Leg . | . . . . . . . . Wheel . | . . . . . . . . Hover . | . . . . . . . . Flight . | . . . . . . . . Utility 9 | . . . 2 2 1 . 4 Device 3 | . . . 1 1 . . 1 Storage . | . . . . . . . . Processor 2 | . . . . . . . 2 Hackware 4 | . . . 1 1 1 . 1 Protection . | . . . . . . . . Artifact . | . . . . . . . . Weapon 12 | 1 . . 1 . . 2 8 Energy Gun 1 | . . . 1 . . . . Energy Cannon 3 | . . . . . . . 3 Ballistic Gun 6 | 1 . . . . . 2 3 Ballistic Cannon . | . . . . . . . . Launcher 2 | . . . . . . . 2 Special Weapon . | . . . . . . . . Impact Weapon . | . . . . . . . . Slashing Weapon . | . . . . . . . . Piercing Weapon . | . . . . . . . . Special Melee Weapon . | . . . . . . . . Unidentified Prototypes . | . . . . . . . . Parts Lost 7 | . . . . . . . 7 Power . | . . . . . . . . Propulsion . | . . . . . . . . Utility 3 | . . . . . . . 3 Weapon 4 | . . . . . . . 4 Highest Loss Streak 4 | . . . . . . . 4 To Critical Strikes . | . . . . . . . . Average Slot Usage (%) 42 | . 14 14 26 39 44 53 54 Device 4 | . . . 10 11 3 . 2 Processor 2 | . . . . . . . 7 Hackware 22 | . . . 4 17 29 33 29 Ballistic Gun 13 | . 14 14 11 11 11 20 14 Naked Turns . | . . . . . . . . Heaviest Build 8 | 2 2 2 3 3 3 3 8 Greatest Support 3 | 3 3 3 3 3 3 3 3 Greatest Overweight (x) 2 | . . . . . . . 2 Average Overweight (x) . | . . . . . . . . Largest Inventory Capacity 5 | 5 5 5 5 5 5 5 5 Average Capacity 5 | 5 5 5 5 5 5 5 5 Most Carried 5 | . 2 2 5 5 5 5 5 Average Carried 4 | . . 2 2 4 4 5 4 Final Capacity 5 | 5 5 5 5 5 5 5 5 Final Carried 5 | . 2 2 5 5 5 5 3 Class Distribution -------------------- 72% | Hacker-Mutant 27% | Mutant Dominant Class ---------------- Mutant | -10/Materials Mutant | -10/Mines Mutant | -9/Materials Hacker-Mutant | -9/Mines Hacker-Mutant | -9/Exiles Hacker-Mutant | -8/Mines Hacker-Mutant | -8/Materials Resources | -11 -10 -10 -9 -9 -9 -8 -8 ----------- Run | Scr Mat Min Mat Min Exi Min Mat Matter Collected 653 | 171 . 39 165 39 13 . 226 Remotely . | . . . . . . . . Salvage Created 866 | . . . 75 59 . 49 683 Parts 57 | . . . 6 4 . 7 40 Haulers Intercepted . | . . . . . . . . Recyclers Shooed 1 | . . . . . . . 1 Parts Field Recycled . | . . . . . . . . Retrieved Matter . | . . . . . . . . Parts Self-Destructed . | . . . . . . . . Prevented . | . . . . . . . . Kills | -11 -10 -10 -9 -9 -9 -8 -8 ------- Run | Scr Mat Min Mat Min Exi Min Mat Combat Hostiles Destroyed 22 | . . . 2 4 . 3 13 Guns 13 | . . . 2 4 . 3 4 Cannons 4 | . . . . . . . 4 AOE 5 | . . . . . . . 5 Classes Destroyed 9 | . . . 2 . . . 7 Worker 2 | . . . . . . . 2 Builder 2 | . . . . . . . 2 Recycler 2 | . . . . . . . 2 Watcher 1 | . . . . . . . 1 Swarmer 11 | . . . 1 4 . 3 3 Grunt 5 | . . . . . . . 5 Brawler 1 | . . . . . . . 1 Sentry 4 | . . . 1 . . . 3 Hunter 1 | . . . . . . . 1 Best Kill Streak 10 | . . . 1 5 . 3 10 Combat Bots Only 6 | . . . 1 5 . 3 6 Max Kills in Single Turn 3 | . . . 1 1 . 1 3 Gunslinging . | . . . . . . . . Exploded 2 | . . . . . . . 2 Melee . | . . . . . . . . Uniques/NPCs Destroyed . | . . . . . . . . Combat | -11 -10 -10 -9 -9 -9 -8 -8 -------- Run | Scr Mat Min Mat Min Exi Min Mat Damage Taken 1224 | . 26 . 47 91 . 73 987 Core 702 | . 18 . 47 14 . 41 582 Absorbed by Shields . | . . . . . . . . Core Remaining (%) 88 | 100 . 92 . . . 74 . Volleys Fired 81 | . . . 13 6 . 5 57 Largest 2 | . . . 2 1 . 1 2 Hottest 95 | . . . 95 20 . 20 95 Shots Fired 114 | . . . 15 6 . 5 88 Gun 99 | . . . 15 6 . 5 73 Cannon 9 | . . . . . . . 9 Launcher 6 | . . . . . . . 6 Special . | . . . . . . . . Kinetic 97 | . . . 13 6 . 5 73 Thermal 11 | . . . 2 . . . 9 Explosive 6 | . . . . . . . 6 Electromagnetic . | . . . . . . . . Robot Hit Streak 12 | . . . 11 12 . 3 9 Robot Miss Streak 4 | . . . 4 1 . 3 4 Penetration Max . | . . . . . . . . Secondary Targets 1 | . . . . . . . 1 Max Gunslinging Chain 1 | . . . . . . . 1 Shots Hit Robots 72 | . . . 11 4 . 3 54 Core Hits 52 | . . . 3 4 . 3 42 Critical Kills . | . . . . . . . . Critical Parts Destroyed . | . . . . . . . . Critical Strikes . | . . . . . . . . Melee Attacks . | . . . . . . . . Impact . | . . . . . . . . Slashing . | . . . . . . . . Piercing . | . . . . . . . . Sneak Attacks . | . . . . . . . . Combat Hostiles . | . . . . . . . . Follow-up Attacks . | . . . . . . . . Damage Inflicted 1525 | . . . 156 45 . 50 1274 Guns 700 | . . . 156 45 . 50 449 Cannons 175 | . . . . . . . 175 Explosions 649 | . . . . . . . 649 Melee . | . . . . . . . . Ramming 1 | . . . . . . . 1 Kinetic 656 | . . . 112 45 . 50 449 Thermal 219 | . . . 44 . . . 175 Explosive 649 | . . . . . . . 649 Electromagnetic . | . . . . . . . . Impact . | . . . . . . . . Slashing . | . . . . . . . . Piercing . | . . . . . . . . Highest Corruption . | . . . . . . . . Average Corruption . | . . . . . . . . Corruption Purged . | . . . . . . . . Corruption Blocked . | . . . . . . . . Overload Shots . | . . . . . . . . Overflow Damage 108 | . . . . . . . 108 Projectiles . | . . . . . . . . Explosions 108 | . . . . . . . 108 Melee . | . . . . . . . . Knockbacks . | . . . . . . . . Impact . | . . . . . . . . Kinetic . | . . . . . . . . Secondary . | . . . . . . . . Self-Inflicted Damage 176 | . . . . . . . 176 Shots 3 | . . . . . . . 3 Rammed 1 | . . . . . . . 1 Targets Rammed 1 | . . . . . . . 1 Kicked . | . . . . . . . . Crushed . | . . . . . . . . Highest Temperature 65 | . . . 18 . . . 65 Average Temperature 27 | . . . 10 . . . 30 Received Heat Transfer 216 | . . . . . . . 216 Siege Activations . | . . . . . . . . Robots Corrupted . | . . . . . . . . Combat Hostiles . | . . . . . . . . Parts Fried . | . . . . . . . . Impact Corruptions . | . . . . . . . . Robots Melted . | . . . . . . . . Combat Hostiles . | . . . . . . . . Parts Melted . | . . . . . . . . Heat Transferred 333 | . . . 74 . . . 259 Parts Sabotaged . | . . . . . . . . Parts Stolen . | . . . . . . . . Parts Stripped . | . . . . . . . . Power Chain Reactions . | . . . . . . . . Missiles Intercepted . | . . . . . . . . Alert | -11 -10 -10 -9 -9 -9 -8 -8 ------- Run | Scr Mat Min Mat Min Exi Min Mat Peak Influence 481 | . 45 17 168 155 . 70 481 Initial 65 | . . 17 6 65 . . 27 Average 151 | . 15 17 106 151 . 64 224 Maximum Alert Level 2 | . . . . . . . 2 Low Security (%) 72 | 100 100 100 100 100 . 100 41 Level 1 20 | . . . . . . . 44 Level 2 6 | . . . . . . . 14 Level 3 . | . . . . . . . . Level 4 . | . . . . . . . . Level 5 . | . . . . . . . . High Security . | . . . . . . . . Max Security . | . . . . . . . . Squads Dispatched 3 | . 1 1 . . . . 1 Investigation 1 | . 1 . . . . . . Extermination . | . . . . . . . . Reinforcement 1 | . . . . . . . 1 Assault 1 | . . 1 . . . . . Garrison . | . . . . . . . . Intercept . | . . . . . . . . Searches Triggered . | . . . . . . . . Construction Impeded . | . . . . . . . . Haulers Reinforced . | . . . . . . . . Active Scanning Responses . | . . . . . . . . Cargo Convoy Interrupts . | . . . . . . . . Stealth | -11 -10 -10 -9 -9 -9 -8 -8 --------- Run | Scr Mat Min Mat Min Exi Min Mat Distress Signals 11 | . 2 . 3 2 . . 4 Communications Jammed . | . . . . . . . . Distress Signals . | . . . . . . . . Times Spotted 54 | . 6 2 12 5 . 3 26 Peak Tracking Total 8 | . 8 2 8 4 . 2 8 Tactical Retreats 6 | . 1 . . . . . 5 Traps | -11 -10 -10 -9 -9 -9 -8 -8 ------- Run | Scr Mat Min Mat Min Exi Min Mat Traps Triggered 1 | . 1 . . . . . . Indirectly . | . . . . . . . . Trap Hack Attempts . | . . . . . . . . Triggered . | . . . . . . . . Disarmed . | . . . . . . . . Reprogrammed . | . . . . . . . . Reused . | . . . . . . . . Traps Extracted . | . . . . . . . . Installed . | . . . . . . . . Triggered . | . . . . . . . . Machines | -11 -10 -10 -9 -9 -9 -8 -8 ---------- Run | Scr Mat Min Mat Min Exi Min Mat Machines Disabled 3 | . . . 1 . . . 2 Max in Single Turn 2 | . . . 1 . . . 2 Garrison Access 1 | . . . . . . . 1 Machines Sabotaged . | . . . . . . . . Garrisons Compromised . | . . . . . . . . Overloaded Fab Kills . | . . . . . . . . Hacking | -11 -10 -10 -9 -9 -9 -8 -8 --------- Run | Scr Mat Min Mat Min Exi Min Mat Machines Accessed 9 | . . . 1 . 3 . 5 Terminals 3 | . . . 1 . . . 2 Fabricators . | . . . . . . . . Repair Stations . | . . . . . . . . Recycling Units 2 | . . . . . . . 2 Scanalyzers . | . . . . . . . . Garrison Access 1 | . . . . . . . 1 Total Hacks 22 | . . . 2 . 6 . 14 Successful 18 | . . . 1 . 6 . 11 Failed 4 | . . . 1 . . . 3 Catastrophic 1 | . . . 1 . . . . Database Lockouts . | . . . . . . . . Manual 16 | . . . 2 . 1 . 13 Terminals 7 | . . . 2 . . . 5 Fabricators . | . . . . . . . . Repair Stations . | . . . . . . . . Recycling Units 7 | . . . . . . . 7 Scanalyzers . | . . . . . . . . Garrison Access 2 | . . . . . . . 2 Terminal Hacks 7 | . . . . . 6 . 1 Record 5 | . . . . . 5 . . Zone Layout 1 | . . . . . . . 1 EX-Prototype ID Bank 1 | . . . . . 1 . . Fabricator Hacks . | . . . . . . . . Repair Station Hacks . | . . . . . . . . Recycling Unit Hacks 1 | . . . . . . . 1 Retrieve Components 1 | . . . . . . . 1 Scanalyzer . | . . . . . . . . Garrison Access Hacks 1 | . . . . . . . 1 Seal Access 1 | . . . . . . . 1 Unauthorized Hacks 9 | . . . 1 . . . 8 Terminals 4 | . . . 1 . . . 3 Track 3 | . . . 1 . . . 2 Botnet 1 | . . . . . . . 1 Fabricators . | . . . . . . . . Repair Stations . | . . . . . . . . Recycling Units 5 | . . . . . . . 5 Monitor 1 | . . . . . . . 1 Reject 2 | . . . . . . . 2 Recyclers 1 | . . . . . . . 1 Mask 1 | . . . . . . . 1 Scanalyzers . | . . . . . . . . Garrison Access . | . . . . . . . . Data Cores Recovered . | . . . . . . . . Used . | . . . . . . . . Hacking Detections 5 | . . . 1 . . . 4 Full Trace Events . | . . . . . . . . Feedback Events . | . . . . . . . . Feedback Blocked . | . . . . . . . . Robot Schematics Acquired . | . . . . . . . . Robots Built . | . . . . . . . . Authchips . | . . . . . . . . Time . | . . . . . . . . Total Robot Build Rating . | . . . . . . . . Part Schematics Acquired . | . . . . . . . . Parts Built . | . . . . . . . . Authchips . | . . . . . . . . Time . | . . . . . . . . Total Part Build Rating . | . . . . . . . . Parts Repaired . | . . . . . . . . Time . | . . . . . . . . Parts Recycled . | . . . . . . . . Recycled Matter . | . . . . . . . . Retrieved Matter . | . . . . . . . . Retrieved Components 3 | . . . . . . . 3 Parts Scanalyzed . | . . . . . . . . Part Schematics Acquired . | . . . . . . . . Parts Damaged . | . . . . . . . . Bothacking | -11 -10 -10 -9 -9 -9 -8 -8 ------------ Run | Scr Mat Min Mat Min Exi Min Mat Used RIF Installer . | . . . . . . . . Robots Hacked . | . . . . . . . . Non-combat . | . . . . . . . . Combat . | . . . . . . . . Robot Hacks Applied . | . . . . . . . . Relay Couplers Released . | . . . . . . . . Fabnet Peak Effective % . | . . . . . . . . Robots Rewired . | . . . . . . . . Allies Hacked . | . . . . . . . . Hacks Repelled . | . . . . . . . . Allies | -11 -10 -10 -9 -9 -9 -8 -8 -------- Run | Scr Mat Min Mat Min Exi Min Mat Total Allies 1 | . . 1 . . . . . Largest Group 1 | . . 1 1 . . . . Highest-Rated Group 31 | . . 31 31 . . . . Highest-Rated Ally 31 | . . 31 31 . . . . Total Orders . | . . . . . . . . Ally Attacks 10 | . . . 10 . . . . Total Damage 104 | . . . 104 . . . . Kills 3 | . . . 3 . . . . Allies Corrupted . | . . . . . . . . Allies Melted . | . . . . . . . . Intel | -11 -10 -10 -9 -9 -9 -8 -8 ------- Run | Scr Mat Min Mat Min Exi Min Mat Robot Analysis Total . | . . . . . . . . Derelict Logs Recovered 4 | . . 2 . 2 . . . Drone Launches . | . . . . . . . . Drone Recoveries . | . . . . . . . . Exploration | -11 -10 -10 -9 -9 -9 -8 -8 ------------- Run | Scr Mat Min Mat Min Exi Min Mat Turns Passed 1136 | 29 57 70 108 163 220 59 430 Spaces Moved 1695 | 56 103 129 142 259 414 72 520 Core 1695 | 56 103 129 142 259 414 72 520 Treads . | . . . . . . . . Legs . | . . . . . . . . Wheels . | . . . . . . . . Hover . | . . . . . . . . Flight . | . . . . . . . . Fastest Speed 50 | 50 50 50 50 50 50 50 50 Average Speed 50 | 50 50 50 50 50 50 50 51 Slowest Speed 150 | 50 50 50 50 50 50 50 150 Overloaded Moves . | . . . . . . . . Propulsion Burnouts . | . . . . . . . . Robots Hopped . | . . . . . . . . Cave-ins Triggered . | . . . . . . . . Exploration Rate (%) 35 | 3 30 37 11 61 81 27 36 Regions Visited 7 Branch Regions 4 Pre-discovered Areas 2 | . . 1 . . 1 . . Known Exits Taken . | . . . . . . . . Unknown Exits Taken 7 | 1 1 1 1 1 1 1 . Scrap Searched 4 | . . 2 . 2 . . . Spaces Dug 6 | . . . . . . . 6 Terrain Destroyed 45 | . . . . . . . 45 Melee . | . . . . . . . . Projectile 2 | . . . . . . . 2 AOE 43 | . . . . . . . 43 Terrain Rammed . | . . . . . . . . Walls Destroyed . | . . . . . . . . Machines Disabled . | . . . . . . . . Actions | -11 -10 -10 -9 -9 -9 -8 -8 --------- Run | Scr Mat Min Mat Min Exi Min Mat Total 1865 | 56 107 133 163 286 426 88 606 Wait 49 | . 3 5 . 14 10 9 8 Move 1688 | 55 102 128 141 258 413 71 520 Hop . | . . . . . . . . Pick Up 14 | . 2 . 4 3 1 . 4 Fast Attach 9 | 1 . . 2 1 . 2 3 Attach 8 | . . . 1 1 1 . 5 Detach 2 | . . . 1 . . . 1 Swap 4 | . . . . . . . 4 Drop 9 | . . . 1 3 1 1 3 Fire 81 | . . . 13 6 . 5 57 Melee . | . . . . . . . . Ram 1 | . . . . . . . 1 Kick . | . . . . . . . . Crush . | . . . . . . . . Escape Stasis . | . . . . . . . . Rewire . | . . . . . . . . Trap . | . . . . . . . . Miscellaneous . | . . . . . . . . Route ------- -11/Scrapyard -10/Materials -10/Mines -9/Materials -9/Mines (discovered 3 exits: *Mat x2 / *Exi) -9/Exiles -8/Mines -8/Materials History --------- Turn | Location | Event 3 | -11/Scrapyard | Discovered new exit (range 16) 30 | -11/Scrapyard | Entered Materials 66 | -10/Materials | Discovered new exit (range 11) 87 | -10/Materials | Entered Mines 125 | -10/Mines | Learned location of Storage (-7) 137 | -10/Mines | Discovered new exit (range 13) 138 | -10/Mines | Met a Derelict testing a Signal Generator 141 | -10/Mines | Learned Materials terminal intel 157 | -10/Mines | Entered Materials 157 | -9/Materials | Accompanied by 1 ally 157 | -9/Materials | Evolved 2 slots: Utility x2 158 | -9/Materials | Loaded intel: 12 terminal locations 183 | -9/Materials | Discovered new exit (range 9) 265 | -9/Materials | Entered Mines 296 | -9/Mines | Discovered new exit (range 6) 306 | -9/Mines | Assembled infested the area 309 | -9/Mines | Build established: Mutant 318 | -9/Mines | Met 8R-AWN 323 | -9/Mines | Discovered new exit (range 16) 358 | -9/Mines | Received a Rocket Launcher from a helpful Derelict 365 | -9/Mines | Learned Materials trap positions 366 | -9/Mines | Learned Materials interactive machine intel 422 | -9/Mines | Discovered new exit (range 5) 428 | -9/Mines | Entered Exiles 451 | -9/Exiles | Welcomed by 8R-AWN 459 | -9/Exiles | Met EX-HEX 474 | -9/Exiles | Met EX-BIN 483 | -9/Exiles | Aligned with FarCom system 483 | -9/Exiles | Given EX-Vault access code 515 | -9/Exiles | Opened EX-Vault 520 | -9/Exiles | Found Modified TNC 530 | -9/Exiles | Warned to stay clear of 0b10 Research branches 546 | -9/Exiles | Met EX-DEC 560 | -9/Exiles | Learned location of Zion (-6) 581 | -9/Exiles | Visited The Gauntlet 626 | -9/Exiles | Build established: Hacker-Mutant 641 | -9/Exiles | Discovered new exit (range 14) 648 | -9/Exiles | Left Exiles lab with Modified TNC 648 | -9/Exiles | Entered Mines 695 | -8/Mines | Discovered new exit (range 15) 707 | -8/Mines | Entered Materials 707 | -8/Materials | Evolved 2 slots: Utility x2 708 | -8/Materials | Loaded intel: 25 trap records 709 | -8/Materials | Loaded intel: 19 interactive machine locations 990 | -8/Materials | Core integrity fell below 50% 1029 | -8/Materials | Lost 3 parts (1u2w) 1127 | -8/Materials | Core integrity fell below 20% 1137 | -8/Materials | Destroyed self via exploding Nuclear Reactor Last Messages --------------- 01124_ Hvy. Assault Rifle destroyed. 01124_ Destroyed Hvy. Assault Rifle. 01124_ W-25 Informer destroyed. 01125_ K-01 Serf collects debris. 01125_ K-01 Serf cleans the Nuclear Reactor. 01126_ Hacking Suite destroyed. 01126_ K-01 Serf destroyed. 01126_ G-47 Trooper destroyed. 01126_ B-36 Bruiser destroyed. 01128_ K-01 Serf destroyed. 01128_ U-05 Engineer destroyed. 01129_ The unstable cave ceiling collapses. 01130_ G-47 Trooper destroyed. 01136_ The unstable cave ceiling collapses. 01137_ Nuclear Reactor explodes. 01137_ G-47 Trooper destroyed. 01137_ Hvy. Particle Cannon destroyed. 01137_ Destroyed Hvy. Particle Cannon. 01137_ Hacking Suite destroyed. 01137_ Destroyed Hacking Suite. Map ----- +----------------------------------------------------+ | ?????????????????????????????????????????????????? | | ?????????????????????????????????????????????????? | | ?????????????????????????????????????????????????? | | ?????????????????????????????????????????????????? | | ?????????????????????????????????????????????????? | | ?????????????????????????????????????????????????? | | ?????????????????????????????????????????????????? | | ?????????????????????????????????????????????^???? | | ???????????????????????????????????????a?????????? | | ??????????????????????????????????????????^^?????? | | ?????????????????????????????????????????????????? | | ?????????????????????????????????????????????????? | | ??????????????????????????????????????????^??????? | | ????????T ##########+#################?????????? | | ????????? k ?????????? | | ????????? a ?????"T"?? | | ??????a?? g ?????"""?? | | ????????? ###+######### ##/###?????????? | | ????????? ## ## a [ ?????????? | | ????????? ## """ ## ?????????? | | ????????? ## """ ## !! ?????????? | | ????????? ##""" """ ## [ !! ?????????? | | ????????? ##"R ## % !! ?????????? | | ????????? ##""" ## = #????????? | | ????????? ## "" ## = ###?????????? | | ???????g? ## ## @ #????????????? | | ????????? ############## ! #?????????????? | | ????????? ##?????# """ ##?????????????? | | ????????? #?????# "T" #??????????????? | | ????????? #?????# # #??????????????? | | ????????? #?????# = !# ##??????????????? | | ????????? #?????######+#### #???????????????? | | ????????? ##????####### #??# #???????????????? | | ????????? #####????# / ## #??# #???????????????? | | ????????? #????????# ## ##?# #???????????????? | | ????????? #????????# # ###r#???????????????? | | ???????? #????????# / % #########???????? | | ???????? #????????# # ### ## #???????? | | """""??? ##???????# ####### ## #???????? | | """""#?? #???????# w#????# # #???????? | | """""#?? #???????# #????#! + #???????? | | """""#?? #???????# #????# # #???????? | | """""#?? #######?##+######### ## #???????? | | ???? ## #### ## # #########???????? | | ##+########### + #???????# #???????????????? | | + ######???????+ #?"?????????????? | | ####### #????????????# #?T?????????????? | | #?????# #????????????# #?"?????????????? | | ###### #?????# #????????????+ +???????????????? | | ?????# #?????# #????????????# #???????????????? | +----------------------------------------------------+ Best States ------------- Heat Dissipation 31 Energy Generation 5 Energy Capacity 100 Matter Stores 300 Matter Capacity 300 Sight Range 16 Robot Scan Range 14 Terrain Scan Density 85 Evasion (%) 50 Offensive Hacking 40 Item Schematics ----------------- None Robot Schematics ------------------ None Fabricated ------------ Nothing Alien Tech Used ----------------- None Achievements -------------- None Challenges ------------ None Game ------ Seed SuperchargedBehemothMallet Manual? 0 Play Time 00:22:34 Cumulative 213.6 hours Start 2022.04.16 @ 19:32:36 End 2022.04.16 @ 19:57:38 Sessions 1 Manual Loads 0 Difficulty Rogue Special Mode None Game No. 59 Rogue 42 Adventurer 17 Explorer 0 Win Type - Total 12 Types 7/0/4/1/0/0/0/0/0 Lore% 72 Gallery% 73 Achievement% 67 Wizard Run 0 Options --------- ASCII 0 Keyboard 0 Movement Arrows Keybinds 0 Fullscreen 1 Font 28/Dina Map View 72x54 Tactical HUD 1 Map Filters NONE Filters NONE Steam 1 RUN: fac27724-4548-41b4-9852-73dc6021fce8